fUSD/lending_fUSD_20240210
["ID","MTS","AMOUNT","RATE_DAILY","PERIOD"]
[313670467,1707564641631,-500.0,0.00022585,2]
[313670468,1707564641640,-541.24,0.00022585,2]
[313670469,1707564641650,-500.0,0.00022585,2]
[313670470,1707564641661,-673.0,0.00022585,2]
[313670471,1707564641670,-818.49,0.00022585,2]
[313670472,1707564641679,-500.0,0.00022585,2]
[313670473,1707564641689,-500.0,0.00022585,2]
[313670474,1707564641698,-619.99,0.00022585,2]
[313670475,1707564641707,-500.0,0.00022585,2]
[313670476,1707564641716,-861.97,0.00022585,2]
[313670477,1707564641725,-500.0,0.00022585,2]
[313670478,1707564641734,-500.0,0.00022585,2]
[313670479,1707564641743,-1976.23,0.00022585,2]
[313670480,1707564641753,-2054.74,0.00022585,2]
[313670481,1707564641762,-2356.99621881,0.00022585,2]
[313670482,1707564641790,-482.65378119,0.00022585,2]
[313670483,1707564641799,-500.0,0.00022585,2]
[313670484,1707564641809,-823.76,0.00022585,2]
[313670485,1707564641818,-3419.24,0.00022585,2]
[313670486,1707564641827,-500.0,0.00022585,2]
[313670487,1707564641836,-500.0,0.00022585,5]
[313670488,1707564641846,-524.45,0.00022585,2]
[313670489,1707564641855,-743.46,0.00022585,2]
[313670490,1707564641864,-592.77534988,0.00022585,2]
[313670491,1707564641873,-155.22253977,0.00022586,2]
[313670492,1707564641883,-163.31220385,0.00022586,2]
[313670493,1707564641893,-155.76670024,0.00022586,2]
[313670494,1707564641902,-204.78663029,0.00022586,2]
[313670495,1707564641911,-194.38199254,0.00022586,2]
[313670496,1707564641921,-500.0,0.00022586,2]
[313670497,1707564641930,-151.48576014,0.00022586,2]
[313670498,1707564641939,-533.7130832,0.00022586,2]
[313670499,1707564641948,-500.0,0.00022586,2]
[313670500,1707564641957,-500.0,0.00022586,2]
[313670501,1707564641966,-1024.25,0.00022586,2]
[313670502,1707564641976,-500.0,0.00022586,2]
[313670503,1707564641985,-551.66466162,0.00022586,2]
[313670504,1707564641994,-500.0,0.00022586,2]
[313670505,1707564642003,-500.0,0.00022586,2]
[313670506,1707564642013,-835.74,0.00022586,2]
[313670507,1707564642021,-500.0,0.00022586,2]
[313670508,1707564642030,-1308.63,0.00022586,2]
[313670509,1707564642039,-507.26844513,0.00022586,2]
[313670510,1707564642048,-500.0,0.00022586,2]
[313670511,1707564642057,-500.0,0.00022586,2]
[313670512,1707564642066,-500.0,0.00022586,2]
[313670513,1707564642074,-500.0,0.00022586,2]
[313670514,1707564642084,-500.0,0.00022586,2]
[313670515,1707564642098,-500.0,0.00022586,2]
[313670516,1707564642107,-500.0,0.00022586,2]
[313670517,1707564642116,-500.0,0.00022586,2]
[313670518,1707564642125,-500.0,0.00022586,2]
[313670519,1707564642136,-500.0,0.00022586,2]
[313670520,1707564642145,-500.0,0.00022586,2]
[313670521,1707564642154,-500.0,0.00022586,2]
[313670522,1707564642163,-500.0,0.00022586,2]
[313670523,1707564642173,-500.0,0.00022586,2]
[313670524,1707564642182,-487.4853572,0.00022586,2]
[313670525,1707564642191,-500.0,0.00022586,2]
[313670526,1707564642200,-500.0,0.00022586,7]
[313670527,1707564642209,-398.67978836,0.00022586,2]
[313670528,1707564642217,-500.0,0.00022586,2]
[313670529,1707564642226,-500.0,0.00022586,2]
[313670530,1707564642235,-500.0,0.00022586,2]
[313670531,1707564642244,-500.0,0.00022586,2]
[313670532,1707564642253,-500.0,0.00022586,2]
[313670533,1707564642262,-329.5148381,0.00022586,2]
[313670534,1707564642271,-500.0,0.00022586,2]
[313670535,1707564642280,-500.0,0.00022586,2]
[313670536,1707564642289,-500.0,0.00022586,2]
[313670537,1707564642298,-500.0,0.00022586,2]
[313670538,1707564642307,-565.34,0.00022586,2]
[313670539,1707564642316,-500.0,0.00022586,2]
[313670540,1707564642325,-500.0,0.00022586,2]
[313670541,1707564642333,-500.0,0.00022586,2]
[313670542,1707564642342,-500.0,0.00022586,2]
[313670543,1707564642351,-500.0,0.00022586,2]
[313670544,1707564642360,-574.8798691,0.00022586,2]
[313670545,1707564642369,-525.56,0.00022586,2]
[313670546,1707564642378,-150.0,0.00022586,2]
[313670548,1707564642388,-500.0,0.00022586,2]
[313670550,1707564642397,-500.0,0.00022586,2]
[313670552,1707564642406,-267.12252312,0.00022586,2]
[313670554,1707564642416,-500.0,0.00022586,2]
[313670556,1707564642425,-500.0,0.00022586,2]
[313670558,1707564642434,-500.0,0.00022586,2]
[313670560,1707564642443,-500.0,0.00022586,2]
[313670561,1707564642452,-500.0,0.00022586,2]
[313670562,1707564642461,-500.0,0.00022586,2]
[313670563,1707564642470,-500.0,0.00022586,2]
[313670564,1707564642480,-500.0,0.00022586,2]
[313670565,1707564642489,-500.0,0.00022586,2]
[313670566,1707564642498,-500.0,0.00022586,2]
[313670567,1707564642508,-544.39,0.00022586,2]
[313670568,1707564642516,-500.0,0.00022586,2]
[313670569,1707564642526,-500.0,0.00022586,2]
[313670570,1707564642535,-500.0,0.00022586,2]
[313670571,1707564642544,-237.78165276,0.00022586,2]
[313670572,1707564642559,-262.21834724,0.00022586,2]
[313670573,1707564642568,-500.0,0.00022586,2]
[313670574,1707564642578,-500.0,0.00022586,2]
[313670575,1707564642587,-500.0,0.00022586,2]
[313670577,1707564642596,-500.0,0.00022586,2]
[313670578,1707564642605,-746.93,0.00022586,2]
[313670579,1707564642614,-500.0,0.00022586,2]
[313670580,1707564642623,-500.0,0.00022586,2]
[313670581,1707564642632,-500.0,0.00022586,2]
[313670582,1707564642641,-500.0,0.00022586,2]
[313670583,1707564642650,-318.64845174,0.00022586,2]
[313670584,1707564642658,-500.0,0.00022586,2]
[313670585,1707564642668,-500.0,0.00022586,2]
[313670586,1707564642677,-500.0,0.00022586,2]
[313670587,1707564642686,-500.0,0.00022586,2]
[313670588,1707564642696,-500.0,0.00022586,2]
[313670589,1707564642705,-500.0,0.00022586,2]
[313670590,1707564642714,-500.0,0.00022586,2]
[313670591,1707564642724,-2849.38,0.00022586,2]
[313670592,1707564642734,-500.0,0.00022586,2]
[313670593,1707564642743,-500.0,0.00022586,2]
[313670594,1707564642753,-4165.26,0.00022586,2]
[313670595,1707564642762,-500.0,0.00022586,2]
[313670596,1707564642772,-500.0,0.00022586,2]
[313670597,1707564642781,-2303.49,0.00022586,2]
[313670598,1707564642791,-256.65993145,0.00022586,2]
[313670599,1707564642802,-2092.5,0.00022586,2]
[313670600,1707564642812,-24.97600978,0.00022586,2]
[313670601,1707564642826,-475.02399022,0.00022586,2]
[313670602,1707564642836,-1422.50919133,0.00022586,2]
[313670603,1707564642854,-431.00709111,0.00022586,2]
[313670604,1707564644980,-539.8,0.00022585,2]
[313670605,1707564644990,-1095.35371756,0.00022586,2]
[313670606,1707564644999,-26.45362572,0.00022586,2]
[313670607,1707564645012,-473.54637428,0.00022586,2]
[313670608,1707564645021,-500.0,0.00022586,2]
[313670609,1707564645031,-1386.83,0.00022586,2]
[313670610,1707564645040,-500.0,0.00022586,2]
[313670611,1707564645051,-500.0,0.00022586,2]
[313670612,1707564645060,-500.0,0.00022586,2]
[313670613,1707564645070,-851.22362572,0.00022586,2]
[313670614,1707564645083,-259.27637428,0.00022586,2]
[313670615,1707564645095,-500.0,0.00022586,2]
[313670616,1707564645105,-500.0,0.00022586,2]
[313670617,1707564645115,-2937.61825557,0.00022586,2]
[313670618,1707564645161,-537.65208213,0.00022586,2]
[313670619,1707564645208,-1312.6596623,0.00022586,2]
[313670620,1707564645217,-184.04310669,0.00022586,2]
[313670621,1707564645226,-500.0,0.00022586,2]
[313670622,1707564645235,-4349.5,0.00022586,2]
[313670623,1707564645245,-13734.49,0.00022586,2]
[313670624,1707564645254,-500.0,0.00022586,2]
[313670625,1707564645263,-500.0,0.00022586,2]
[313670627,1707564645273,-500.0,0.00022586,2]
[313670628,1707564645283,-500.0,0.00022586,2]
[313670629,1707564645293,-500.0,0.00022586,2]
[313670630,1707564645302,-500.0,0.00022586,2]
[313670631,1707564645311,-500.0,0.00022586,2]
[313670632,1707564645321,-780.12,0.00022586,2]
[313670634,1707564645331,-565.54,0.00022586,2]
[313670635,1707564645341,-2158.65,0.00022586,2]
[313670636,1707564645352,-642.47494658,0.00022586,2]
[313670637,1707564645364,-616.51,0.00022586,2]
[313670638,1707564645373,-482.94777868,0.00022586,2]
[313670639,1707564645388,-500.0,0.00022586,2]
[313670640,1707564645397,-1566.53,0.00022586,2]
[313670641,1707564645406,-500.0,0.00022586,2]
[313670642,1707564645416,-500.0,0.00022586,2]
[313670643,1707564645426,-1756.41,0.00022586,2]
[313670644,1707564645436,-736.16,0.00022586,2]
[313670645,1707564645446,-500.0,0.00022586,2]
[313670646,1707564645456,-500.0,0.00022586,2]
[313670647,1707564645466,-1175.22,0.00022586,2]
[313670648,1707564645477,-500.0,0.00022586,2]
[313670649,1707564645488,-695.9,0.00022586,2]
[313670650,1707564645498,-500.0,0.00022586,2]
[313670651,1707564645509,-1822.48,0.00022586,2]
[313670652,1707564645519,-505.90344526,0.00022586,2]
[313670653,1707564645530,-500.0,0.00022586,2]
[313670654,1707564645541,-500.0,0.00022586,2]
[313670655,1707564645550,-2000.78,0.00022586,2]
[313670656,1707564645559,-500.8206407,0.00022586,2]
[313670657,1707564645568,-730.81,0.00022586,2]
[313670658,1707564645578,-500.0,0.00022586,2]
[313670659,1707564645588,-210.9435895,0.00022586,2]
[313670660,1707564645597,-754.06,0.00022586,2]
[313670661,1707564645606,-873.36,0.00022586,2]
[313670662,1707564645616,-708.93,0.00022586,2]
[313670663,1707564645625,-500.0,0.00022586,2]
[313670664,1707564645634,-500.0,0.00022586,2]
[313670665,1707564645644,-500.0,0.00022586,2]
[313670666,1707564645654,-500.0,0.00022586,2]
[313670667,1707564645664,-2887.31,0.00022586,2]
[313670668,1707564645674,-500.0,0.00022586,2]
[313670669,1707564645684,-668.73,0.00022586,2]
[313670670,1707564645693,-500.0,0.00022586,2]
[313670671,1707564645703,-1027.48,0.00022586,2]
[313670672,1707564645712,-528.19266311,0.00022586,2]
[313670673,1707564645723,-500.0,0.00022586,5]
[313670674,1707564645733,-1818.24,0.00022586,2]
[313670675,1707564645743,-500.0,0.00022586,2]
[313670676,1707564645752,-2516.97,0.00022586,2]
[313670677,1707564645763,-2397.78,0.00022586,2]
[313670678,1707564645773,-500.0,0.00022586,2]
[313670679,1707564645783,-500.0,0.00022586,2]
[313670680,1707564645793,-1156.2,0.00022586,2]
[313670681,1707564645802,-500.0,0.00022586,2]
[313670682,1707564645812,-1804.6,0.00022586,2]
[313670683,1707564645827,-500.0,0.00022586,2]
[313670684,1707564645837,-170.78773129,0.00022586,2]
[313670685,1707564645847,-500.0,0.00022586,2]
[313670686,1707564645857,-2647.24,0.00022586,2]
[313670687,1707564645866,-500.0,0.00022586,2]
[313670688,1707564645876,-500.0,0.00022586,2]
[313670689,1707564645885,-500.0,0.00022586,2]
[313670690,1707564645894,-500.0,0.00022586,2]
[313670691,1707564645904,-500.0,0.00022586,2]
[313670692,1707564645914,-2067.91,0.00022586,2]
[313670693,1707564645923,-500.0,0.00022586,2]
[313670694,1707564645933,-659.43,0.00022586,2]
[313670695,1707564645942,-1743.73,0.00022586,2]
[313670696,1707564645952,-5102.47,0.00022586,2]
[313670697,1707564645962,-500.0,0.00022586,2]
[313670698,1707564645971,-500.0,0.00022586,2]
[313670699,1707564645981,-2184.05,0.00022586,2]
[313670700,1707564645990,-753.12,0.00022586,2]
[313670702,1707564646000,-239.5844351,0.00022586,2]
[313670703,1707564646009,-622.91,0.00022586,2]
[313670704,1707564646019,-500.0,0.00022586,2]
[313670705,1707564646029,-500.0,0.00022586,2]
[313670706,1707564646038,-802.6,0.00022586,2]
[313670707,1707564646048,-1612.95,0.00022586,2]
[313670708,1707564646058,-500.0,0.00022586,2]
[313670709,1707564646067,-673.65,0.00022586,2]
[313670710,1707564646077,-500.0,0.00022586,2]
[313670711,1707564646091,-571.02,0.00022586,2]
[313670712,1707564646101,-1239.13,0.00022586,2]
[313670713,1707564646110,-500.0,0.00022586,2]
[313670714,1707564646119,-500.0,0.00022586,2]
[313670715,1707564646129,-500.0,0.00022586,2]
[313670716,1707564646139,-500.0,0.00022586,2]
[313670717,1707564646148,-9861.6,0.00022586,2]
[313670718,1707564646157,-500.0,0.00022586,2]
[313670719,1707564646169,-500.0,0.00022586,2]
[313670720,1707564646178,-500.0,0.00022586,2]
[313670721,1707564646436,-3620.3,0.00022586,2]
[313670722,1707564646445,-1291.84,0.00022586,2]
[313670723,1707564646454,-500.0,0.00022586,2]
[313670724,1707564646463,-500.0,0.00022586,2]
[313670725,1707564646472,-2061.47,0.00022586,2]
[313670726,1707564646481,-1710.89,0.00022586,2]
[313670727,1707564646490,-500.0,0.00022586,2]
[313670728,1707564646499,-1153.36,0.00022586,2]
[313670729,1707564646510,-1413.41,0.00022586,2]
[313670730,1707564646519,-500.0,0.00022586,2]
[313670731,1707564646528,-500.0,0.00022586,2]
[313670732,1707564646537,-500.0,0.00022586,2]
[313670733,1707564646547,-813.14,0.00022586,2]
[313670734,1707564646556,-500.0,0.00022586,2]
[313670735,1707564646565,-626.83,0.00022586,2]
[313670736,1707564646574,-500.0,0.00022586,2]
[313670737,1707564646585,-10425.37,0.00022586,2]
[313670738,1707564646597,-500.0,0.00022586,2]
[313670739,1707564646607,-500.0,0.00022586,2]
[313670740,1707564646616,-563.94,0.00022586,2]
[313670741,1707564646625,-500.0,0.00022586,2]
[313670742,1707564646636,-7630.4,0.00022586,2]
[313670743,1707564646645,-1103.07,0.00022586,2]
[313670744,1707564646655,-536.58952933,0.00022586,2]
[313670745,1707564646664,-500.0,0.00022586,2]
[313670746,1707564646673,-500.0,0.00022586,2]
[313670747,1707564646682,-500.0,0.00022586,2]
[313670748,1707564646692,-500.0,0.00022586,2]
[313670749,1707564646701,-500.0,0.00022586,2]
[313670750,1707564646710,-1702.01,0.00022586,2]
[313670751,1707564646719,-500.0,0.00022586,2]
[313670752,1707564646729,-2775.22,0.00022586,2]
[313670753,1707564646739,-3838.85,0.00022586,2]
[313670754,1707564646749,-500.0,0.00022586,2]
[313670755,1707564646758,-1033.63,0.00022586,2]
[313670756,1707564646767,-500.0,0.00022586,2]
[313670757,1707564646776,-696.04,0.00022586,2]
[313670758,1707564646785,-9657.88,0.00022586,2]
[313670759,1707564646795,-500.0,0.00022586,2]
[313670760,1707564646804,-500.0,0.00022586,2]
[313670761,1707564646813,-630.33,0.00022586,2]
[313670762,1707564646823,-500.0,0.00022586,2]
[313670763,1707564646832,-1305.35,0.00022586,2]
[313670764,1707564646842,-500.0,0.00022586,2]
[313670765,1707564646853,-500.0,0.00022586,2]
[313670766,1707564646863,-500.0,0.00022586,2]
[313670767,1707564646873,-500.0,0.00022586,2]
[313670768,1707564646883,-1261.63206498,0.00022587,2]
[313670769,1707564646893,-155.0,0.00022587,2]
[313670770,1707564646902,-155.0,0.00022587,2]
[313670771,1707564646911,-1065.5330178,0.00022587,2]
[313670772,1707564646920,-155.0,0.00022587,2]
[313670773,1707564646930,-700.11998778,0.00022587,2]
[313670774,1707564646939,-4739.97154573,0.00022587,2]
[313670775,1707564646949,-631.65347807,0.00022587,2]
[313670776,1707564646958,-404.13006807,0.00022587,2]
[313670777,1707564646968,-152900.93640791,0.00022587,2]
[313670778,1707564646984,-67648.05959667,0.00022587,2]
[313670779,1707564647006,-970.61454166,0.00022588,3]
[313670780,1707564647015,-500.0,0.00022588,2]
[313670781,1707564647024,-167.60443663,0.00022588,2]
[313670782,1707564647034,-500.0,0.00022588,2]
[313670783,1707564647043,-500.0,0.00022588,2]
[313670784,1707564647053,-500.0,0.00022588,2]
[313670785,1707564647064,-500.0,0.00022588,2]
[313670786,1707564647073,-943.93,0.00022588,2]
[313670787,1707564647083,-500.0,0.00022588,2]
[313670788,1707564647096,-500.0,0.00022588,2]
[313670789,1707564647106,-500.0,0.00022588,2]
[313670790,1707564647118,-2198.55,0.00022588,2]
[313670791,1707564647128,-584.37,0.00022588,2]
[313670792,1707564647138,-500.0,0.00022588,2]
[313670793,1707564647149,-500.0,0.00022588,2]
[313670794,1707564647158,-500.0,0.00022588,2]
[313670795,1707564647170,-500.0,0.00022588,2]
[313670796,1707564647180,-500.0,0.00022588,2]
[313670797,1707564647189,-500.0,0.00022588,2]
[313670798,1707564647198,-500.0,0.00022588,2]
[313670799,1707564647208,-500.0,0.00022588,2]
[313670800,1707564647219,-500.0,0.00022588,2]
[313670801,1707564647230,-500.0,0.00022588,2]
[313670802,1707564647240,-500.0,0.00022588,2]
[313670803,1707564647249,-500.0,0.00022588,2]
[313670804,1707564647258,-500.0,0.00022588,2]
[313670805,1707564647267,-500.0,0.00022588,2]
[313670806,1707564647276,-500.0,0.00022588,2]
[313670807,1707564647285,-500.0,0.00022588,2]
[313670808,1707564647295,-500.0,0.00022588,2]
[313670809,1707564647305,-589.2,0.00022588,2]
[313670810,1707564647314,-500.0,0.00022588,2]
[313670811,1707564647324,-500.0,0.00022588,2]
[313670812,1707564647333,-500.0,0.00022588,2]
[313670813,1707564647343,-500.0,0.00022588,2]
[313670814,1707564647353,-795.29,0.00022588,2]
[313670815,1707564647362,-594.76,0.00022588,2]
[313670816,1707564647371,-500.0,0.00022588,2]
[313670817,1707564647381,-500.0,0.00022588,2]
[313670818,1707564647390,-615.97,0.00022588,2]
[313670819,1707564647400,-500.0,0.00022588,2]
[313670820,1707564647410,-500.0,0.00022588,2]
[313670821,1707564647419,-2383.73,0.00022588,2]
[313670822,1707564647428,-500.0,0.00022588,2]
[313670823,1707564647438,-264.10705592,0.00022589,2]
[313670824,1707564647447,-500.0,0.00022589,2]
[313670825,1707564647457,-500.0,0.00022589,2]
[313670826,1707564647467,-585.27309439,0.00022589,2]
[313670827,1707564647477,-500.0,0.00022589,2]
[313670828,1707564647488,-500.0,0.00022589,2]
[313670829,1707564647497,-500.0,0.00022589,2]
[313670830,1707564647507,-500.0,0.00022589,2]
[313670831,1707564647518,-422.36401781,0.0002259,2]
[313670832,1707564647529,-800.0,0.00022611,2]
[313670833,1707564647538,-163.26494089,0.00022623,2]
[313670834,1707564647548,-500.0,0.00022626,2]
[313670835,1707564647557,-157.66,0.00022628,2]
[313670836,1707564647567,-250.06952782,0.00022688,2]
[313670837,1707564647578,-566.0855557,0.000227,2]
[313670838,1707564647588,-176.21256355,0.00022753,2]
[313670839,1707564647597,-5121.06517296,0.00022753,2]
[313670840,1707564647607,-163.26494089,0.0002276,2]
[313670841,1707564647618,-250.06952782,0.00022789,2]
[313670842,1707564647630,-102563.51424433,0.000228,2]
[313670843,1707564647639,-151.08840271,0.000228,2]
[313670844,1707564647649,-500.0,0.00022801,2]
[313670845,1707564647660,-800.0,0.00022801,2]
[313670846,1707564647670,-5121.06517291,0.00022802,2]
[313670847,1707564647680,-2349.06275973,0.00022816,2]
[313670848,1707564647689,-173.0,0.00022846,2]
[313670849,1707564647702,-57460.0,0.0002285,2]
[313670850,1707564647712,-7999.99,0.0002285,3]
[313670851,1707564647722,-217033.70389132,0.00022851,2]
[313670852,1707564647805,-306.21779093,0.00022585,2]
[313670853,1707564647842,-433.813,0.00022585,2]
[313670854,1707564647855,-3251.67920907,0.00022585,2]
[313670855,1707564647864,-25870.90422192,0.00022851,2]
[313670856,1707564647874,-10802.85682199,0.00022851,2]
[313670857,1707564711283,177.56,0.00021777,2]
[313670858,1707564719389,4119.3678,0.00022489,2]
[313670859,1707564735002,14206.1691,0.00022485,2]
[313670860,1707564786049,500.0,0.00022457,2]
[313670861,1707564817779,500.0,0.00022191,2]
[313670862,1707564825666,8918.4503,0.00022485,2]
[313670863,1707564830772,285.56,0.00019829,2]
[313670864,1707564830965,285.56,0.00022093,2]
[313670865,1707564874012,672.06,0.00021654,2]
[313670866,1707564878242,100000.0,0.000225,2]
[313670867,1707564883676,54559.81761031,0.000225,2]
[313670868,1707564887270,500.0,0.00022191,2]
[313670869,1707564896685,156.29345494,0.00022486,2]
[313670870,1707564956427,500.0,0.00022191,2]
[313670871,1707564961200,272.10823482,0.00022486,2]
[313670872,1707564974791,157.69,0.00021897,2]
[313670873,1707565006519,160.39387963,0.0002247,2]
[313670874,1707565011343,159.1056,0.00022485,2]
[313670875,1707565025867,582.66878234,0.00022191,2]
[313670876,1707565028414,2836.5013,0.00022485,2]
[313670877,1707565087726,156.29345488,0.00022485,2]
[313670878,1707565104421,325.14,0.0002173,2]
[313670879,1707565157507,8718.9416,0.00022485,2]
[313670880,1707565263121,156.29345488,0.00022484,2]
[313670881,1707565310973,257.0,0.00019707,2]
[313670882,1707565311185,257.0,0.00021971,2]
[313670883,1707565349746,153.30214944,0.00022,2]
[313670884,1707565355940,770.34561325,0.00021999,2]
[313670885,1707565377121,160.39387963,0.00022433,2]
[313670886,1707565401794,462.35,0.00021607,2]
[313670887,1707565433463,156.29345488,0.00022482,2]
[313670888,1707565589052,156.29345488,0.00022482,2]
[313670889,1707565672384,177.56,0.0002212,2]
[313670890,1707565691364,270.95,0.00021594,2]
[313670891,1707565748370,156.29345488,0.00022482,2]
[313670903,1707565833696,6037.54160333,0.00022493,2]
[313670906,1707565834125,-699.26311665,0.00022501,2]
[313670907,1707565834135,-533.35976392,0.00022502,2]
[313670908,1707565834179,-763.01283785,0.00022502,2]
[313670909,1707565834289,-401.82437314,0.00022502,2]
[313670916,1707565837809,-258.22756435,0.00022502,2]
[313670917,1707565837819,-488.79355245,0.00022503,2]
[313670918,1707565837833,-374.16160013,0.00022503,2]
[313670919,1707565837863,-6568.9087509,0.00022503,2]
[313670920,1707565837872,-290.32441325,0.00022503,2]
[313670921,1707565837919,-544.38170658,0.00022503,2]
[313670922,1707565837976,-522.51395,0.00022503,2]
[313670923,1707565838029,-36155.14726256,0.00022503,2]
[313670924,1707565838041,-16597.67694922,0.00022503,2]
[313670925,1707565838084,-688.5,0.00022503,2]
[313670926,1707565838142,-628.36779911,0.00022503,2]
[313670927,1707565838152,-13573.92209149,0.00022504,2]
[313670928,1707565838161,-300.0,0.00022509,2]
[313670929,1707565838170,-150.0,0.00022509,2]
[313670930,1707565838180,-160.39387963,0.00022546,2]
[313670931,1707565838189,-2053.59,0.00022546,2]
[313670932,1707565838198,-9999.99,0.00022546,2]
[313670933,1707565838207,-214.94989898,0.00022546,2]
[313670934,1707565838216,-631.84836997,0.00022547,2]
[313670935,1707565838226,-817.07,0.00022547,2]
[313670936,1707565838235,-500.0,0.00022547,2]
[313670937,1707565838244,-500.0,0.00022548,2]
[313670939,1707565838253,-500.0,0.00022548,2]
[313670941,1707565838263,-500.0,0.00022548,2]
[313670943,1707565838273,-465.17664569,0.00022548,2]
[313670944,1707565838284,-500.0,0.00022548,2]
[313670945,1707565838293,-260.18162353,0.00022548,2]
[313670946,1707565838303,-500.0,0.00022548,2]
[313670947,1707565838311,-500.0,0.00022548,2]
[313670948,1707565838321,-288.31697038,0.00022548,2]
[313670949,1707565838330,-500.0,0.00022548,2]
[313670950,1707565838340,-500.0,0.00022548,2]
[313670951,1707565838349,-500.0,0.00022548,2]
[313670952,1707565838360,-500.0,0.00022548,2]
[313670953,1707565838371,-150.0,0.00022548,2]
[313670954,1707565838381,-500.0,0.00022548,2]
[313670955,1707565838390,-500.0,0.00022548,2]
[313670956,1707565838399,-500.0,0.00022548,2]
[313670957,1707565838407,-500.0,0.00022548,2]
[313670958,1707565838418,-500.0,0.00022548,2]
[313670959,1707565838428,-500.0,0.00022548,2]
[313670960,1707565838440,-500.0,0.00022548,2]
[313670961,1707565838450,-500.0,0.00022548,2]
[313670962,1707565838460,-500.0,0.00022548,2]
[313670963,1707565838469,-500.0,0.00022548,2]
[313670964,1707565838482,-3276.77,0.00022548,2]
[313670965,1707565838493,-648.99,0.00022548,2]
[313670966,1707565838502,-1733.24072122,0.00022548,2]
[313670972,1707565840457,-339.32040267,0.00022501,2]
[313670973,1707565840466,-258.69125201,0.00022548,2]
[313670974,1707565840479,-729.40802677,0.00022548,2]
[313670975,1707565840489,-906.97529466,0.00022548,2]
[313670976,1707565840530,-824.1117,0.00022548,2]
[313670977,1707565840584,-376.91190015,0.00022548,2]
[313670978,1707565840598,-3409.46110519,0.00022548,2]
[313670979,1707565840607,-1021.10972489,0.00022548,2]
[313670980,1707565840643,-1709.55027511,0.00022548,2]
[313670981,1707565840653,-863.79,0.00022548,2]
[313670982,1707565840663,-2448.84,0.00022548,2]
[313670983,1707565840674,-588.21004791,0.00022548,2]
[313670984,1707565840703,-300.0,0.00022548,2]
[313670985,1707565840717,-259.41654144,0.00022548,2]
[313670986,1707565840730,-558.59855038,0.00022548,2]
[313670987,1707565841474,-551.45936331,0.00022548,2]
[313670996,1707565844612,-500.0,0.00022547,2]
[313670997,1707565844624,-1021.52506833,0.00022548,2]
[313670998,1707565844663,-546.18042863,0.00022548,2]
[313670999,1707565844674,-2068.71,0.00022548,2]
[313671000,1707565844685,-2207.51,0.00022548,2]
[313671001,1707565844695,-500.0,0.00022548,2]
[313671002,1707565844706,-502.6,0.00022548,2]
[313671003,1707565844716,-284.28378868,0.00022548,2]
[313671004,1707565844730,-1487.62096218,0.00022548,2]
[313671005,1707565844744,-275.16935946,0.00022548,2]
[313671006,1707565844834,-778.92588968,0.00022548,2]
[313671007,1707565844845,-2027.5,0.00022548,2]
[313671008,1707565844856,-500.0,0.00022548,2]
[313671009,1707565844868,-500.0,0.00022548,2]
[313671010,1707565844879,-500.0,0.00022548,2]
[313671011,1707565844889,-155.61554407,0.00022548,2]
[313671012,1707565844900,-1099.1,0.00022548,2]